Cogmind - Beta 13 @@@ ROGUE MODE // 2024.04.01 @ 23:28:08 Player: Chadwick Daniels Result: Self-destructed Performance ------------- Evolutions (1) 500 Regions Visited (2) 400 Robots Destroyed (8) 40 Value Destroyed (261) 261 Prototype IDs (0) 0 Alien Tech Used (0) 0 Bonus (0) 0 TOTAL SCORE: 1201 Bonus ------- None Cogmind --------- Core Integrity 334/400 Matter 62/300 Energy 100/100 System Corruption 0% Temperature Cool (6) Movement Core (300) Ox5 Location -9/Materials Parts ------- > --- POWER (1) -------- (None) > --- PROPULSION (2) --- (None) > --- UTILITY (4) ------ Small Storage Unit Signal Interpreter Hardened Light Armor Plating > --- WEAPON (2) ------- Medium Laser Rocket Launcher > --- INVENTORY (8) ---- Light Ion Engine Light Treads Light Treads Light Assault Rifle Rocket Launcher Rocket Launcher Peak State ------------ > --- POWER ------------ Light Ion Engine > --- PROPULSION ------- Aluminum Leg Aluminum Leg > --- UTILITY ---------- Small Storage Unit Sensor Array Signal Interpreter Hardened Light Armor Plating > --- WEAPON ----------- Medium Laser Rocket Launcher > --- INVENTORY -------- Light Ion Engine Light Treads Light Treads Light Assault Rifle Rocket Launcher Rocket Launcher Rocket Launcher [Rating: 12] Favorites ----------- Power Light Ion Engine Engine Light Ion Engine Propulsion Aluminum Leg Leg Aluminum Leg Utility Small Storage Unit Device Sensor Array Storage Small Storage Unit Processor Signal Interpreter Protection Hardened Light Armor Plating Weapon Medium Laser Energy Gun Medium Laser Ballistic Gun Light Assault Rifle Launcher Rocket Launcher Build | -11 -10 -9 ------- Run | Yrd Mat Mat Slots Evolved 2 | . . 2 Power . | . . . Propulsion . | . . . Utility 2 | . . 2 Weapon . | . . . Parts Attached 11 | 6 2 3 Power 1 | 1 . . Engine 1 | 1 . . Core . | . . . Reactor . | . . . Propulsion 2 | 2 . . Treads . | . . . Leg 2 | 2 . . Wheel . | . . . Hover . | . . . Flight . | . . . Utility 4 | 1 1 2 Device 1 | . . 1 Storage 1 | 1 . . Processor 1 | . 1 . Hackware . | . . . Protection 1 | . . 1 Artifact . | . . . Weapon 4 | 2 1 1 Energy Gun 1 | 1 . . Energy Cannon . | . . . Ballistic Gun 1 | 1 . . Ballistic Cannon . | . . . Launcher 2 | . 1 1 Special Weapon . | . . . Impact Weapon . | . . . Slashing Weapon . | . . . Piercing Weapon . | . . . Special Melee Weapon . | . . . Unidentified Prototypes . | . . . Parts Lost 5 | . . 5 Power 1 | . . 1 Propulsion 2 | . . 2 Utility 1 | . . 1 Weapon 1 | . . 1 Highest Loss Streak 4 | . . 4 To Critical Strikes . | . . . Average Slot Usage (%) 90 | . 95 83 Engine 11 | . 14 6 Leg 23 | . 28 15 Device 2 | . . 6 Storage 12 | . 14 11 Processor 10 | . 9 11 Protection 3 | . . 10 Energy Gun 12 | . 14 11 Launcher 11 | . 12 10 Naked Turns . | . . . Heaviest Build 20 | 11 14 20 Greatest Support 20 | 20 20 20 Greatest Overweight (x) 5 | 2 . 5 Average Overweight (x) . | . . . Largest Inventory Capacity 8 | 8 8 8 Average Capacity 7 | 7 8 8 Most Carried 8 | 6 8 8 Average Carried 6 | 4 7 6 Final Capacity 8 | 8 8 8 Final Carried 8 | 6 8 6 Class Distribution -------------------- 100% | Mutant Dominant Class ---------------- Mutant | -10/Materials Mutant | -9/Materials Resources | -11 -10 -9 ----------- Run | Yrd Mat Mat Matter Collected 267 | 215 9 43 Remotely . | . . . Salvage Created 212 | . 19 193 Parts 13 | . 2 11 Haulers Intercepted . | . . . Recyclers Shooed . | . . . Parts Field Recycled . | . . . Retrieved Matter . | . . . Parts Self-Destructed . | . . . Prevented . | . . . Kills | -11 -10 -9 ------- Run | Yrd Mat Mat Combat Hostiles Destroyed 5 | . . 5 Guns 3 | . . 3 AOE 2 | . . 2 Classes Destroyed 3 | . 1 2 Watcher 3 | . 2 1 Grunt 2 | . . 2 Sentry 3 | . . 3 Best Kill Streak 3 | . 2 3 Combat Bots Only 3 | . . 3 Max Kills in Single Turn 1 | . 1 1 Gunslinging . | . . . Exploded 1 | . . 1 Melee . | . . . Uniques/NPCs Destroyed . | . . . Combat | -11 -10 -9 -------- Run | Yrd Mat Mat Hostile Shots Fired 59 | . 8 51 Missed 17 | . 4 13 Damage Taken 654 | . 75 579 Core 66 | . . 66 Absorbed by Shields . | . . . Core Remaining (%) 100 | 100 100 . Volleys Fired 22 | . 5 17 Largest 2 | . 2 2 Hottest 83 | . 83 83 Shots Fired 42 | . 10 32 Gun 22 | . 5 17 Cannon . | . . . Launcher 20 | . 5 15 Special . | . . . Kinetic . | . . . Thermal 22 | . 5 17 Explosive 20 | . 5 15 Electromagnetic . | . . . Robot Hit Streak 5 | . 2 5 Robot Miss Streak 6 | . 2 6 Penetration Max . | . . . Secondary Targets . | . . . Shots Hit Robots 16 | . 2 14 Core Hits 15 | . 4 11 Critical Kills . | . . . Critical Parts Destroyed . | . . . Critical Strikes . | . . . Melee Attacks . | . . . Impact . | . . . Slashing . | . . . Piercing . | . . . Sneak Attacks . | . . . Combat Hostiles . | . . . Follow-up Attacks . | . . . Damage Inflicted 648 | . 135 513 Guns 114 | . 13 101 Cannons . | . . . Explosions 534 | . 122 412 Melee . | . . . Ramming . | . . . Kinetic . | . . . Thermal 114 | . 13 101 Explosive 534 | . 122 412 Electromagnetic . | . . . Impact . | . . . Slashing . | . . . Piercing . | . . . Highest Corruption . | . . . Average Corruption . | . . . Corruption Purged . | . . . Corruption Blocked . | . . . Overload Shots . | . . . Overflow Damage 46 | . . 46 Projectiles . | . . . Explosions 46 | . . 46 Melee . | . . . Knockbacks . | . . . Impact . | . . . Kinetic . | . . . Secondary . | . . . Self-Inflicted Damage 71 | . 48 23 Shots 2 | . 1 1 Rammed . | . . . Targets Rammed . | . . . Kicked . | . . . Crushed . | . . . Highest Temperature 300 | . 63 300 Average Temperature 92 | . 29 109 Received Heat Transfer 276 | . . 276 Siege Activations . | . . . Robots Corrupted . | . . . Combat Hostiles . | . . . Parts Fried . | . . . Impact Corruptions . | . . . Robots Melted . | . . . Combat Hostiles . | . . . Parts Melted . | . . . Heat Transferred 333 | . 37 296 Parts Sabotaged . | . . . Parts Stolen . | . . . Parts Stripped . | . . . Power Chain Reactions . | . . . Alert | -11 -10 -9 ------- Run | Yrd Mat Mat Peak Influence 270 | . 78 270 Initial 32 | . . 32 Average 79 | . 60 146 Maximum Alert Level 1 | . . 1 Low Security (%) 91 | 100 100 72 Level 1 8 | . . 27 Level 2 . | . . . Level 3 . | . . . Level 4 . | . . . Level 5 . | . . . High Security . | . . . Max Security . | . . . Squads Dispatched 1 | . . 1 Investigation . | . . . Extermination . | . . . Reinforcement 1 | . . 1 Assault . | . . . Garrison . | . . . Intercept . | . . . Searches Triggered . | . . . Construction Impeded . | . . . Haulers Reinforced . | . . . Active Scanning Responses . | . . . Cargo Convoy Interrupts . | . . . Stealth | -11 -10 -9 --------- Run | Yrd Mat Mat Distress Signals 1 | . . 1 Communications Jammed . | . . . Distress Signals . | . . . Times Spotted 15 | . 5 10 Peak Tracking Total 5 | . 3 5 Tactical Retreats 1 | . . 1 Traps | -11 -10 -9 ------- Run | Yrd Mat Mat Traps Triggered . | . . . Indirectly . | . . . Trap Hack Attempts . | . . . Triggered . | . . . Disarmed . | . . . Reprogrammed . | . . . Reused . | . . . Traps Extracted . | . . . Installed . | . . . Triggered . | . . . Machines | -11 -10 -9 ---------- Run | Yrd Mat Mat Machines Disabled 1 | . . 1 Max in Single Turn 1 | . . 1 Machines Repaired . | . . . Machines Dismantled . | . . . Machines Sabotaged . | . . . Overloaded Fab Kills . | . . . Hacking | -11 -10 -9 --------- Run | Yrd Mat Mat Machines Accessed . | . . . Terminals . | . . . Fabricators . | . . . Repair Stations . | . . . Recycling Units . | . . . Scanalyzers . | . . . Garrison Access . | . . . Total Hacks . | . . . Successful . | . . . Failed . | . . . Catastrophic . | . . . Database Lockouts . | . . . Manual . | . . . Terminals . | . . . Fabricators . | . . . Repair Stations . | . . . Recycling Units . | . . . Scanalyzers . | . . . Garrison Access . | . . . Terminal Hacks . | . . . Fabricator Hacks . | . . . Repair Station Hacks . | . . . Recycling Unit Hacks . | . . . Scanalyzer . | . . . Garrison Access Hacks . | . . . Unauthorized Hacks . | . . . Terminals . | . . . Fabricators . | . . . Repair Stations . | . . . Recycling Units . | . . . Scanalyzers . | . . . Garrison Access . | . . . Data Cores Recovered . | . . . Used . | . . . Hacking Detections . | . . . Full Trace Events . | . . . Feedback Events . | . . . Feedback Blocked . | . . . Robot Schematics Acquired . | . . . Robots Built . | . . . Authchips . | . . . Time . | . . . Total Robot Build Rating . | . . . Part Schematics Acquired . | . . . Parts Built . | . . . Authchips . | . . . Time . | . . . Total Part Build Rating . | . . . Parts Repaired . | . . . Time . | . . . Parts Recycled . | . . . Recycled Matter . | . . . Retrieved Matter . | . . . Retrieved Components . | . . . Parts Scanalyzed . | . . . Part Schematics Acquired . | . . . Parts Damaged . | . . . Bothacking | -11 -10 -9 ------------ Run | Yrd Mat Mat Used RIF Installer . | . . . Robots Hacked . | . . . Non-combat . | . . . Combat . | . . . Robot Hacks Applied . | . . . Relay Couplers Released . | . . . Fabnet Peak Effective % . | . . . Robots Rewired . | . . . Allies Hacked . | . . . Hacks Repelled . | . . . Allies | -11 -10 -9 -------- Run | Yrd Mat Mat Total Allies . | . . . Largest Group . | . . . Highest-Rated Group . | . . . Highest-Rated Ally . | . . . Total Orders . | . . . Ally Attacks . | . . . Total Damage . | . . . Kills . | . . . Allies Corrupted . | . . . Allies Melted . | . . . Intel | -11 -10 -9 ------- Run | Yrd Mat Mat Robot Analysis Total . | . . . Derelict Logs Recovered . | . . . Drone Launches . | . . . Drone Recoveries . | . . . Exploration | -11 -10 -9 ------------- Run | Yrd Mat Mat Turns Passed 489 | 67 264 158 Spaces Moved 317 | 46 200 71 Core 25 | 14 . 11 Treads . | . . . Legs 292 | 32 200 60 Wheels . | . . . Hover . | . . . Flight . | . . . Fastest Speed 50 | 50 120 120 Average Speed 124 | 107 120 147 Slowest Speed 300 | 150 120 300 Overloaded Moves . | . . . Propulsion Burnouts . | . . . Robots Hopped . | . . . Cave-ins Triggered . | . . . Exploration Rate (%) 18 | 5 39 12 Regions Visited 2 Branch Regions . Pre-discovered Areas . | . . . Known Exits Taken 1 | . 1 . Unknown Exits Taken 1 | 1 . . Scrap Searched . | . . . Spaces Dug . | . . . Terrain Destroyed 153 | . 57 96 Melee . | . . . Projectile . | . . . AOE 153 | . 57 96 Terrain Rammed . | . . . Walls Destroyed . | . . . Machines Disabled . | . . . Actions | -11 -10 -9 --------- Run | Yrd Mat Mat Total 370 | 63 215 92 Wait . | . . . Move 315 | 45 199 71 Hop . | . . . Pick Up 19 | 12 6 1 Fast Attach . | . . . Attach 10 | 6 1 3 Detach . | . . . Swap 1 | . 1 . Drop 3 | . 3 . Fire 22 | . 5 17 Melee . | . . . Ram . | . . . Kick . | . . . Crush . | . . . Escape Stasis . | . . . Rewire . | . . . Trap . | . . . Miscellaneous . | . . . Route ------- -11/Scrapyard -10/Materials (discovered 2 exits: *Mat x2) -9/Materials History --------- Turn | Location | Event 17 | -11/Scrapyard | Discovered new exit (range 15) 68 | -11/Scrapyard | Entered Materials 245 | -10/Materials | Discovered new exit (range 4) 317 | -10/Materials | Build established: Mutant 325 | -10/Materials | Discovered new exit (range 8) 331 | -10/Materials | Identified exit to Materials 332 | -10/Materials | Entered another Materials area 332 | -9/Materials | Evolved 2 slots: Utility x2 477 | -9/Materials | Lost 4 parts (1p2n1u) 490 | -9/Materials | Self-destructed Last Messages --------------- Critical hit (Burn: +37). Lgt. Ion Engine destroyed. Critical hit (Burn: +37). Aluminum Leg destroyed. Y-45 Defender destroyed. The unstable cave ceiling collapses. K-01 Serf collects debris. Aluminum Leg destroyed. K-01 Serf collects debris. Y-45 Defender destroyed. The unstable cave ceiling collapses. R-06 Scavenger collects Beam Rifle. The unstable cave ceiling collapses. R-06 Scavenger collects Heat Sink. The unstable cave ceiling collapses. R-06 Scavenger collects Heat Sink. The unstable cave ceiling collapses. ALERT: Hostiles spotted, dispatching reinforcements to Terminal M004. The unstable cave ceiling collapses. Map ----- +----------------------------------------------------+ | #### ### #?????????????????????? | | # ! #?????????????????????? | | ###+###### [ #?????????????????????? | | %% #?????????????????????? | | [ ## # # # #?????????????????????? | | ## #### #?????????????????????? | | """ """ #### ## """ #########?????????????? | | """ """ #?##### """ # #?????????????? | | """ """ #?????# """ """ #?????????????? | | #?????# """ #?????????????? | | ##########?????# # """ #?????????????? | | ???????????????# # #?????????????? | | ???????????????####### #?????????????? | | ????????????????????## " " #?????????????? | | ????????????????????# "R" #?????????????? | | ????????????????????## """ #?????????????? | | ?????????????????????# # ####????????????? | | ?????????????????????# #????????????? | | ?????????????????????## [* #????????????? | | ?????????????????????# [* ##???????????? | | ?????????????????????# [ #???????????? | | ?????????????????????# % #???????????? | | ?????????????????????# ##???????????? | | ?????????????????????# # #????????????? | | ????????????????????# # #????????????? | | ????????????????????# @ ## #????????????? | | ????????????????????# % #########????????????? | | ????????????????????# ???????????????????? | | ????????????????????# g g ?????????????????? | | ????????????????????# ???????????????? | | ????????????????????# #######??????????????? | | ????????????????????## # ####????????????????????? | | ????????????????????? w ????????????????????????? | | ????????????????????" ????????????????????????? | | ???????????????????? ????????????????????????? | | ??????????????????? ? ????????????????????????? | | ???????????????????##+###????????????????????????? | | ?????????????????????????????????????????????????? | | ?????????????????????????????????????????????????? | | ?????????????????????????????????????????????????? | | ?????????????????????????????????????????????????? | | ?????????????????????????????????????????????????? | | ?????????????????????????????????????????????????? | | ?????????????????????????????????????????????????? | | ?????????????????????????????????????????????????? | | ?????????????????????????????????????????????????? | | ?????????????????????????????????????????????????? | | ?????????????????????????????????????????????????? | | ?????????????????????????????????????????????????? | | ?????????????????????????????????????????????????? | +----------------------------------------------------+ Best States ------------- Heat Dissipation 28 Energy Generation 10 Energy Capacity 125 Matter Stores 255 Matter Capacity 300 Sight Range 16 Robot Scan Range 14 Terrain Scan Density 10 Armor Coverage 150 Evasion (%) 55 Item Schematics ----------------- None Robot Schematics ------------------ None Fabricated ------------ Nothing Alien Tech Used ----------------- None Achievements -------------- None Challenges ------------ None Game ------ Seed AutogunSlugAutohacker Manual? 0 Play Time 00:07:55 Cumulative 2.7 hours Start 2024.04.01 @ 23:22:29 End 2024.04.01 @ 23:28:08 Sessions 1 Manual Loads 0 Difficulty Rogue Special Mode None Game No. 8 Rogue 8 Adventurer 0 Explorer 0 Win Type - Total 0 Types 0/0/0/0/0/0/0/0/0 Lore% 1 Gallery% 7 Achievement% 5 Wizard Run 0 Options --------- Layout 1 ASCII 0 Keyboard 0 Movement Mouse Keybinds 0 Fullscreen 1 Font 24/Smallcaps Map View 50x35 Zoom Use 0% Tactical HUD 0 Map Filters NONE Filters NONE Steam 1 RUN: 769e85c8-19b0-4a7f-82d0-b4d3010924e7